[Event "Early-Titled-Tuesday-Blitz-October-10-2023"]
[Site "Chess.com"]
[Date "2023.10.10"]
[Round "11"]
[White "GMKrikor"]
[Black "mr_gustavo"]
[Result "0-1"]
[WhiteElo "2821"]
[BlackElo "2661"]
[TimeControl "180+1"]
[EndTime "10:03:08 PDT"]
[Termination "mr_gustavo won by resignation"]

1. Nf3 {[%clk 0:03:00.9]} 1... Nf6 {[%clk 0:02:59.5]} 2. c4 {[%clk 0:03:01.4]}
2... e6 {[%clk 0:02:58.7]} 3. Nc3 {[%clk 0:03:01]} 3... d5 {[%clk 0:02:59.2]} 4.
cxd5 {[%clk 0:03:01.9]} 4... exd5 {[%clk 0:02:59]} 5. d4 {[%clk 0:03:02.5]} 5...
c6 {[%clk 0:02:56.8]} 6. Bf4 {[%clk 0:03:02.4]} 6... Bd6 {[%clk 0:02:56.5]} 7.
Bxd6 {[%clk 0:03:02.7]} 7... Qxd6 {[%clk 0:02:57.3]} 8. e3 {[%clk 0:03:03.6]}
8... Bf5 {[%clk 0:02:55.6]} 9. Nh4 {[%clk 0:03:03.6]} 9... Bg6 {[%clk
0:02:55.1]} 10. Qb3 {[%clk 0:02:49.5]} 10... Qe7 {[%clk 0:02:51.9]} 11. h3
{[%clk 0:02:40.8]} 11... O-O {[%clk 0:02:51.1]} 12. Nxg6 {[%clk 0:02:40.3]}
12... hxg6 {[%clk 0:02:52]} 13. Bd3 {[%clk 0:02:40.5]} 13... Qc7 {[%clk
0:02:39.4]} 14. O-O-O {[%clk 0:02:39.9]} 14... Nbd7 {[%clk 0:02:39.7]} 15. Kb1
{[%clk 0:02:20.7]} 15... a5 {[%clk 0:02:33.4]} 16. Qc2 {[%clk 0:02:18.5]} 16...
Qd6 {[%clk 0:02:31.7]} 17. g4 {[%clk 0:02:17.1]} 17... b5 {[%clk 0:02:29.3]} 18.
Rc1 {[%clk 0:02:12.3]} 18... Rfc8 {[%clk 0:02:27.7]} 19. f4 {[%clk 0:01:49.1]}
19... Nb6 {[%clk 0:02:26.4]} 20. g5 {[%clk 0:01:44.7]} 20... Nh5 {[%clk
0:02:24.6]} 21. f5 {[%clk 0:01:45.3]} 21... Ng3 {[%clk 0:02:21.5]} 22. fxg6
{[%clk 0:01:45.3]} 22... Nxh1 {[%clk 0:02:15.4]} 23. gxf7+ {[%clk 0:01:43.2]}
23... Kxf7 {[%clk 0:02:15.1]} 24. Rxh1 {[%clk 0:01:42.8]} 24... Kg8 {[%clk
0:02:10.4]} 25. Ne2 {[%clk 0:01:27.8]} 25... Nc4 {[%clk 0:02:08.7]} 26. Nf4
{[%clk 0:01:28]} 26... Nxe3 {[%clk 0:02:00.4]} 27. Qf2 {[%clk 0:00:37.5]} 27...
Rf8 {[%clk 0:01:59]} 28. Qxe3 {[%clk 0:00:31.3]} 28... Rae8 {[%clk 0:01:48.8]}
29. Qf3 {[%clk 0:00:20.4]} 29... Rxf4 {[%clk 0:01:30.1]} 30. Qh5 {[%clk
0:00:20.5]} 30... Re3 {[%clk 0:01:30.6]} 31. Qh7+ {[%clk 0:00:16.4]} 31... Kf7
{[%clk 0:01:29.9]} 32. Bg6+ {[%clk 0:00:16.9]} 32... Qxg6+ {[%clk 0:01:28.8]}
0-1

[Event "Early-Titled-Tuesday-Blitz-October-10-2023"]
[Site "Chess.com"]
[Date "2023.10.10"]
[Round "11"]
[White "surrenderPLS"]
[Black "HanSchut"]
[Result "1-0"]
[WhiteElo "2513"]
[BlackElo "2353"]
[TimeControl "180+1"]
[EndTime "10:03:13 PDT"]
[Termination "surrenderPLS won on time"]

1. e4 {[%clk 0:03:00.9]} 1... c5 {[%clk 0:02:59.5]} 2. Nf3 {[%clk 0:03:01.3]}
2... d6 {[%clk 0:03:00]} 3. d4 {[%clk 0:03:01.5]} 3... cxd4 {[%clk 0:03:00.9]}
4. Nxd4 {[%clk 0:03:02.2]} 4... Nf6 {[%clk 0:03:01.6]} 5. Nc3 {[%clk 0:03:02.4]}
5... a6 {[%clk 0:03:02.2]} 6. Rg1 {[%clk 0:03:02.9]} 6... e6 {[%clk 0:03:01.1]}
7. g4 {[%clk 0:03:02.5]} 7... d5 {[%clk 0:03:00.9]} 8. exd5 {[%clk 0:02:52.5]}
8... Nxd5 {[%clk 0:03:01.8]} 9. Nxd5 {[%clk 0:02:52.3]} 9... Qxd5 {[%clk
0:02:59.4]} 10. Be3 {[%clk 0:02:52.1]} 10... Be7 {[%clk 0:02:37.8]} 11. Bg2
{[%clk 0:02:50.4]} 11... Qd6 {[%clk 0:02:38.1]} 12. Qd2 {[%clk 0:02:42.7]} 12...
O-O {[%clk 0:02:23.4]} 13. O-O-O {[%clk 0:02:41.9]} 13... Rd8 {[%clk 0:02:23.3]}
14. Nb3 {[%clk 0:02:35]} 14... Qc7 {[%clk 0:02:09.5]} 15. Qa5 {[%clk 0:02:30.5]}
15... Qxa5 {[%clk 0:01:02.5]} 16. Nxa5 {[%clk 0:02:29.3]} 16... Nd7 {[%clk
0:00:44.5]} 17. Bxb7 {[%clk 0:02:17.5]} 17... Rb8 {[%clk 0:00:35.2]} 18. Bxc8
{[%clk 0:02:15]} 18... Rbxc8 {[%clk 0:00:26.7]} 19. Nb7 {[%clk 0:02:14.4]} 19...
Nf6 {[%clk 0:00:07.3]} 20. Nxd8 {[%clk 0:02:13.7]} 20... Bxd8 {[%clk 0:00:08.2]}
21. Bg5 {[%clk 0:02:09.2]} 21... h6 {[%clk 0:00:07.8]} 22. Bxf6 {[%clk
0:02:09.1]} 22... Bxf6 {[%clk 0:00:08.7]} 23. f4 {[%clk 0:02:05.8]} 23... Rb8
{[%clk 0:00:09.2]} 24. c3 {[%clk 0:02:03.3]} 24... a5 {[%clk 0:00:09.2]} 25. Kc2
{[%clk 0:02:03.2]} 25... a4 {[%clk 0:00:09.3]} 26. a3 {[%clk 0:02:03]} 26... g6
{[%clk 0:00:06.4]} 27. Rd7 {[%clk 0:02:02.9]} 27... Bg7 {[%clk 0:00:05.7]} 28.
h4 {[%clk 0:02:01.6]} 28... Rb5 {[%clk 0:00:05]} 29. Rgd1 {[%clk 0:01:55.5]}
29... g5 {[%clk 0:00:05.2]} 30. hxg5 {[%clk 0:01:51]} 30... hxg5 {[%clk
0:00:06.1]} 31. f5 {[%clk 0:01:51.2]} 31... exf5 {[%clk 0:00:05.7]} 32. R1d5
{[%clk 0:01:49.6]} 32... Rxd5 {[%clk 0:00:02.2]} 33. Rxd5 {[%clk 0:01:50.5]}
33... fxg4 {[%clk 0:00:02.4]} 34. Rxg5 {[%clk 0:01:51]} 34... f5 {[%clk
0:00:02.7]} 35. Rxf5 {[%clk 0:01:50.4]} 35... Bf6 {[%clk 0:00:02.7]} 36. Rxf6
{[%clk 0:01:50.4]} 36... Kg7 {[%clk 0:00:03]} 37. Rf4 {[%clk 0:01:50.3]} 1-0

[Event "Early-Titled-Tuesday-Blitz-October-10-2023"]
[Site "Chess.com"]
[Date "2023.10.10"]
[Round "11"]
[White "kritipatel"]
[Black "HeinichessPY"]
[Result "0-1"]
[WhiteElo "2108"]
[BlackElo "2198"]
[TimeControl "180+1"]
[EndTime "10:03:18 PDT"]
[Termination "HeinichessPY won by checkmate"]

1. e4 {[%clk 0:02:39.6]} 1... c5 {[%clk 0:03:00.9]} 2. d4 {[%clk 0:02:39.2]}
2... cxd4 {[%clk 0:03:00.8]} 3. c3 {[%clk 0:02:39.9]} 3... dxc3 {[%clk
0:03:01.7]} 4. Nxc3 {[%clk 0:02:40.6]} 4... Nc6 {[%clk 0:03:02.5]} 5. Nf3 {[%clk
0:02:41.3]} 5... e6 {[%clk 0:03:03]} 6. Bc4 {[%clk 0:02:41.8]} 6... a6 {[%clk
0:03:03.4]} 7. O-O {[%clk 0:02:42.1]} 7... b5 {[%clk 0:03:03.8]} 8. Bb3 {[%clk
0:02:41.8]} 8... Bb7 {[%clk 0:03:04.3]} 9. Qe2 {[%clk 0:02:40.6]} 9... Na5
{[%clk 0:03:04.5]} 10. Bd5 {[%clk 0:02:32.5]} 10... Ne7 {[%clk 0:02:59.4]} 11.
Bxb7 {[%clk 0:02:20.7]} 11... Nxb7 {[%clk 0:02:58.7]} 12. Rd1 {[%clk 0:02:21.4]}
12... Nc6 {[%clk 0:02:54.7]} 13. Bf4 {[%clk 0:02:17.9]} 13... Be7 {[%clk
0:02:54.1]} 14. Rac1 {[%clk 0:02:16.8]} 14... O-O {[%clk 0:02:53]} 15. e5 {[%clk
0:02:07.4]} 15... Rc8 {[%clk 0:02:47.3]} 16. Ne4 {[%clk 0:02:06.4]} 16... f5
{[%clk 0:02:43]} 17. Neg5 {[%clk 0:02:01.9]} 17... Qe8 {[%clk 0:02:38.7]} 18.
Qd3 {[%clk 0:01:43.1]} 18... h6 {[%clk 0:02:38]} 19. Qxd7 {[%clk 0:01:26.2]}
19... hxg5 {[%clk 0:02:35.3]} 20. Qxb7 {[%clk 0:01:22.4]} 20... gxf4 {[%clk
0:02:27.2]} 21. Rd7 {[%clk 0:01:22]} 21... Na5 {[%clk 0:02:07]} 22. Rxc8 {[%clk
0:01:11.6]} 22... Qxc8 {[%clk 0:02:06.2]} 23. Qxc8 {[%clk 0:01:04.5]} 23... Rxc8
{[%clk 0:02:07.1]} 24. g3 {[%clk 0:00:55.7]} 24... Kf8 {[%clk 0:02:04.9]} 25.
Nd4 {[%clk 0:00:53.9]} 25... Ke8 {[%clk 0:01:58.4]} 26. Ra7 {[%clk 0:00:51.1]}
26... Bc5 {[%clk 0:01:51.8]} 27. Rxa6 {[%clk 0:00:48]} 27... Bxd4 {[%clk
0:01:51.6]} 28. Rxa5 {[%clk 0:00:48.5]} 28... f3 {[%clk 0:01:51.5]} 29. h4
{[%clk 0:00:46.1]} 29... Rc2 {[%clk 0:01:49.9]} 30. Kh2 {[%clk 0:00:46.8]} 30...
Rxf2+ {[%clk 0:01:49.7]} 31. Kh3 {[%clk 0:00:47.1]} 31... Rxb2 {[%clk
0:01:46.1]} 32. Ra8+ {[%clk 0:00:47.7]} 32... Kf7 {[%clk 0:01:45.8]} 33. Rb8
{[%clk 0:00:47.5]} 33... f2 {[%clk 0:01:35]} 34. Rb7+ {[%clk 0:00:46.8]} 34...
Kg6 {[%clk 0:01:34.8]} 35. h5+ {[%clk 0:00:45.5]} 35... Kh6 {[%clk 0:01:34.8]}
36. g4 {[%clk 0:00:33.8]} 36... f1=Q+ {[%clk 0:01:27]} 37. Kg3 {[%clk
0:00:32.6]} 37... Rg2+ {[%clk 0:01:26]} 38. Kh4 {[%clk 0:00:32.9]} 38... Qh1#
{[%clk 0:01:26.9]} 0-1

[Event "Early-Titled-Tuesday-Blitz-October-10-2023"]
[Site "Chess.com"]
[Date "2023.10.10"]
[Round "11"]
[White "MagnusCarlsen"]
[Black "shimastream"]
[Result "1-0"]
[WhiteElo "3271"]
[BlackElo "3001"]
[TimeControl "180+1"]
[EndTime "10:03:26 PDT"]
[Termination "MagnusCarlsen won by resignation"]

1. e4 {[%clk 0:02:58.8]} 1... d6 {[%clk 0:02:59.4]} 2. d4 {[%clk 0:02:58]} 2...
c6 {[%clk 0:02:59.7]} 3. Nc3 {[%clk 0:02:57]} 3... e5 {[%clk 0:02:58.6]} 4. dxe5
{[%clk 0:02:55.7]} 4... dxe5 {[%clk 0:02:59]} 5. Qxd8+ {[%clk 0:02:56.6]} 5...
Kxd8 {[%clk 0:02:59.9]} 6. f4 {[%clk 0:02:57.1]} 6... Nd7 {[%clk 0:02:58]} 7.
Nf3 {[%clk 0:02:56.6]} 7... Bd6 {[%clk 0:02:58.4]} 8. Bc4 {[%clk 0:02:54.9]}
8... Ke8 {[%clk 0:02:50.4]} 9. Rf1 {[%clk 0:02:47.9]} 9... Ngf6 {[%clk
0:02:48.9]} 10. g3 {[%clk 0:02:36.1]} 10... b5 {[%clk 0:02:46.6]} 11. Bb3 {[%clk
0:02:34.3]} 11... a5 {[%clk 0:02:44.8]} 12. a3 {[%clk 0:02:32.1]} 12... Ba6
{[%clk 0:02:40.6]} 13. fxe5 {[%clk 0:02:29.9]} 13... Nxe5 {[%clk 0:02:40.6]} 14.
Nxe5 {[%clk 0:02:29.9]} 14... Bxe5 {[%clk 0:02:41.5]} 15. Bf4 {[%clk 0:02:30.4]}
15... Bxc3+ {[%clk 0:02:04.4]} 16. bxc3 {[%clk 0:02:29.6]} 16... Ke7 {[%clk
0:01:21.3]} 17. O-O-O {[%clk 0:02:23.7]} 17... b4 {[%clk 0:01:13.1]} 18. e5
{[%clk 0:02:21]} 18... Nd5 {[%clk 0:01:11.9]} 19. Bg5+ {[%clk 0:02:21.1]} 19...
Ke6 {[%clk 0:01:03.2]} 20. c4 {[%clk 0:02:20.6]} 20... Nc3 {[%clk 0:00:59.8]}
21. Rd6+ {[%clk 0:02:20.2]} 21... Kxe5 {[%clk 0:00:59.9]} 22. Bf4+ {[%clk
0:02:20.3]} 22... Ke4 {[%clk 0:01:00.2]} 23. Re1+ {[%clk 0:02:09.2]} 23... Kf3
{[%clk 0:00:57.2]} 24. axb4 {[%clk 0:01:59.6]} 24... axb4 {[%clk 0:00:55.1]} 25.
Kb2 {[%clk 0:01:58.5]} 25... Rhe8 {[%clk 0:00:51.3]} 26. Rf1+ {[%clk 0:01:56.4]}
26... Kg2 {[%clk 0:00:50.6]} 27. Rc1 {[%clk 0:01:54.8]} 27... Ne2 {[%clk
0:00:48.7]} 28. Ra1 {[%clk 0:01:51.7]} 28... Nxf4 {[%clk 0:00:43.2]} 29. gxf4
{[%clk 0:01:51.5]} 29... Bb7 {[%clk 0:00:44.1]} 30. Rad1 {[%clk 0:01:50.8]}
30... Re7 {[%clk 0:00:35.4]} 31. c5 {[%clk 0:01:50.6]} 31... Rae8 {[%clk
0:00:34.2]} 32. f5 {[%clk 0:01:50.5]} 32... Kxh2 {[%clk 0:00:28.7]} 33. f6
{[%clk 0:01:49.1]} 33... gxf6 {[%clk 0:00:27.3]} 34. Rxf6 {[%clk 0:01:50]} 34...
h5 {[%clk 0:00:26.6]} 35. Rh6 {[%clk 0:01:47.2]} 35... Kg3 {[%clk 0:00:19.6]}
36. Rxh5 {[%clk 0:01:46.6]} 36... Re5 {[%clk 0:00:19.9]} 37. Rh7 {[%clk
0:01:44.2]} 37... R8e7 {[%clk 0:00:17.6]} 38. Rf1 {[%clk 0:01:41.3]} 38... f5
{[%clk 0:00:17]} 39. Rh8 {[%clk 0:01:39.8]} 39... Rg7 {[%clk 0:00:16.1]} 40.
Rg1+ {[%clk 0:01:38.8]} 1-0

[Event "Early-Titled-Tuesday-Blitz-October-10-2023"]
[Site "Chess.com"]
[Date "2023.10.10"]
[Round "11"]
[White "Balla_Tamas"]
[Black "kidagent"]
[Result "0-1"]
[WhiteElo "2407"]
[BlackElo "2286"]
[TimeControl "180+1"]
[EndTime "10:03:28 PDT"]
[Termination "kidagent won by resignation"]

1. e4 {[%clk 0:03:00.9]} 1... c6 {[%clk 0:03:00.1]} 2. d4 {[%clk 0:03:00.6]}
2... d5 {[%clk 0:03:00.7]} 3. exd5 {[%clk 0:03:01.5]} 3... cxd5 {[%clk
0:03:00.1]} 4. c4 {[%clk 0:03:00.4]} 4... Nf6 {[%clk 0:02:57]} 5. Nc3 {[%clk
0:02:59.4]} 5... Nc6 {[%clk 0:02:55.5]} 6. Bg5 {[%clk 0:02:58.6]} 6... Ne4
{[%clk 0:02:25.5]} 7. Nxe4 {[%clk 0:02:48.1]} 7... dxe4 {[%clk 0:02:25.2]} 8. d5
{[%clk 0:02:43.6]} 8... Ne5 {[%clk 0:02:24.5]} 9. Be3 {[%clk 0:02:43.6]} 9... e6
{[%clk 0:02:12.4]} 10. f3 {[%clk 0:02:41.4]} 10... Bb4+ {[%clk 0:02:05.3]} 11.
Bd2 {[%clk 0:02:37.8]} 11... Bxd2+ {[%clk 0:01:57.3]} 12. Qxd2 {[%clk
0:02:38.7]} 12... exf3 {[%clk 0:01:52.1]} 13. Nxf3 {[%clk 0:02:34.2]} 13...
Nxf3+ {[%clk 0:01:52.1]} 14. gxf3 {[%clk 0:02:35.1]} 14... exd5 {[%clk
0:01:48.8]} 15. O-O-O {[%clk 0:02:13.9]} 15... O-O {[%clk 0:01:47.4]} 16. cxd5
{[%clk 0:02:08.6]} 16... Bf5 {[%clk 0:01:42.2]} 17. Bd3 {[%clk 0:01:41.5]} 17...
Qxd5 {[%clk 0:01:37.8]} 18. Kb1 {[%clk 0:01:40.8]} 18... Rfd8 {[%clk 0:01:32.8]}
19. Bxf5 {[%clk 0:01:05.5]} 19... Qxd2 {[%clk 0:01:32]} 20. Rxd2 {[%clk
0:01:06.4]} 20... Rxd2 {[%clk 0:01:31.5]} 21. Rc1 {[%clk 0:01:04.8]} 21... Rxh2
{[%clk 0:01:20.2]} 22. Rc7 {[%clk 0:01:04]} 22... Rd8 {[%clk 0:01:09]} 23. a3
{[%clk 0:01:03.4]} 23... h5 {[%clk 0:01:06.5]} 24. Rxb7 {[%clk 0:01:02]} 24...
g6 {[%clk 0:01:06.6]} 25. Be4 {[%clk 0:00:58.8]} 25... h4 {[%clk 0:01:04.4]} 26.
Rxa7 {[%clk 0:00:59]} 26... h3 {[%clk 0:01:03.8]} 27. a4 {[%clk 0:00:47.9]}
27... Re2 {[%clk 0:01:03]} 28. Rc7 {[%clk 0:00:44.4]} 28... Rd1+ {[%clk
0:00:54.6]} 29. Ka2 {[%clk 0:00:43.4]} 29... h2 {[%clk 0:00:54.7]} 30. Bb7
{[%clk 0:00:31.8]} 30... h1=Q {[%clk 0:00:52.7]} 0-1

[Event "Early-Titled-Tuesday-Blitz-October-10-2023"]
[Site "Chess.com"]
[Date "2023.10.10"]
[Round "11"]
[White "Zhigalko_Sergei"]
[Black "wqws"]
[Result "0-1"]
[WhiteElo "2903"]
[BlackElo "2690"]
[TimeControl "180+1"]
[EndTime "10:03:36 PDT"]
[Termination "wqws won by resignation"]

1. e4 {[%clk 0:03:00.9]} 1... c5 {[%clk 0:02:59.8]} 2. Nf3 {[%clk 0:03:00.8]}
2... d6 {[%clk 0:02:57.4]} 3. d4 {[%clk 0:03:01.1]} 3... cxd4 {[%clk 0:02:58.3]}
4. Qxd4 {[%clk 0:03:02]} 4... Nc6 {[%clk 0:02:58]} 5. Bb5 {[%clk 0:03:02]} 5...
Bd7 {[%clk 0:02:58.6]} 6. Bxc6 {[%clk 0:03:02.5]} 6... Bxc6 {[%clk 0:02:58.7]}
7. Nc3 {[%clk 0:03:03]} 7... e6 {[%clk 0:02:58]} 8. Bg5 {[%clk 0:03:03]} 8...
Nf6 {[%clk 0:02:57.1]} 9. O-O-O {[%clk 0:03:03.3]} 9... h6 {[%clk 0:02:55.2]}
10. Bh4 {[%clk 0:03:03.1]} 10... Be7 {[%clk 0:02:52.3]} 11. Rhe1 {[%clk
0:03:03.3]} 11... O-O {[%clk 0:02:50.6]} 12. Kb1 {[%clk 0:03:03.8]} 12... Qa5
{[%clk 0:02:37.3]} 13. Qd2 {[%clk 0:03:03.9]} 13... Qc7 {[%clk 0:02:15.2]} 14.
Nd4 {[%clk 0:03:03.3]} 14... a6 {[%clk 0:02:12.3]} 15. f3 {[%clk 0:02:59.7]}
15... b5 {[%clk 0:02:11.3]} 16. Qf2 {[%clk 0:02:46.7]} 16... b4 {[%clk
0:02:08.9]} 17. Nce2 {[%clk 0:02:46.9]} 17... a5 {[%clk 0:02:09.1]} 18. g4
{[%clk 0:02:47.1]} 18... a4 {[%clk 0:02:06.4]} 19. Rg1 {[%clk 0:02:39.6]} 19...
b3 {[%clk 0:02:05.8]} 20. cxb3 {[%clk 0:02:38.6]} 20... axb3 {[%clk 0:02:05.3]}
21. a3 {[%clk 0:02:29.9]} 21... Nxe4 {[%clk 0:01:42.5]} 22. fxe4 {[%clk
0:02:28.1]} 22... Bxe4+ {[%clk 0:01:42.9]} 23. Ka1 {[%clk 0:02:28.6]} 23... Bxh4
{[%clk 0:01:39.7]} 24. Qxh4 {[%clk 0:02:23.2]} 24... Qc5 {[%clk 0:01:39.2]} 25.
Nb5 {[%clk 0:01:53.8]} 25... Qxb5 {[%clk 0:01:10.8]} 26. Nc3 {[%clk 0:01:53.4]}
26... Qc5 {[%clk 0:01:04.3]} 27. a4 {[%clk 0:01:00.2]} 27... Rxa4+ {[%clk
0:00:48]} 28. Nxa4 {[%clk 0:01:00.1]} 28... Qb4 {[%clk 0:00:47.7]} 29. Rd4
{[%clk 0:00:29.7]} 29... Qxd4 {[%clk 0:00:46.7]} 0-1

[Event "Early-Titled-Tuesday-Blitz-October-10-2023"]
[Site "Chess.com"]
[Date "2023.10.10"]
[Round "11"]
[White "Rodalquilar"]
[Black "Let_it_be_1"]
[Result "1-0"]
[WhiteElo "2747"]
[BlackElo "2563"]
[TimeControl "180+1"]
[EndTime "10:03:39 PDT"]
[Termination "Rodalquilar won by resignation"]

1. d4 {[%clk 0:03:00.9]} 1... d5 {[%clk 0:02:59.6]} 2. Nf3 {[%clk 0:03:01.4]}
2... e6 {[%clk 0:02:59.5]} 3. Bf4 {[%clk 0:03:01.7]} 3... Bd6 {[%clk 0:02:59.5]}
4. e3 {[%clk 0:03:02.1]} 4... Bxf4 {[%clk 0:02:59.8]} 5. exf4 {[%clk 0:03:02.6]}
5... Ne7 {[%clk 0:03:00.6]} 6. Bd3 {[%clk 0:03:01.8]} 6... b6 {[%clk 0:03:00.8]}
7. c3 {[%clk 0:02:55.2]} 7... h6 {[%clk 0:02:58.1]} 8. O-O {[%clk 0:02:51.2]}
8... O-O {[%clk 0:02:56.9]} 9. Qe2 {[%clk 0:02:49.8]} 9... a5 {[%clk 0:02:56.5]}
10. a4 {[%clk 0:02:49.8]} 10... Ba6 {[%clk 0:02:56.2]} 11. Bb5 {[%clk
0:02:50.1]} 11... c6 {[%clk 0:02:54.3]} 12. Bxa6 {[%clk 0:02:50.4]} 12... Nxa6
{[%clk 0:02:53.7]} 13. Ne5 {[%clk 0:02:50.2]} 13... c5 {[%clk 0:02:50.4]} 14.
Na3 {[%clk 0:02:31.9]} 14... cxd4 {[%clk 0:02:37.4]} 15. cxd4 {[%clk 0:02:32.2]}
15... Nb4 {[%clk 0:02:36.1]} 16. Rfc1 {[%clk 0:02:27.3]} 16... Rc8 {[%clk
0:02:34.7]} 17. Nb5 {[%clk 0:02:22.1]} 17... Nec6 {[%clk 0:02:14.1]} 18. Rc3
{[%clk 0:02:08.6]} 18... Qf6 {[%clk 0:01:38.7]} 19. Nd7 {[%clk 0:01:41.6]} 19...
Qxf4 {[%clk 0:01:34]} 20. Nxf8 {[%clk 0:01:41.7]} 20... Rxf8 {[%clk 0:01:31.8]}
21. Qe3 {[%clk 0:01:38.5]} 21... Qf6 {[%clk 0:01:26.9]} 22. Rac1 {[%clk
0:01:37]} 22... Ne7 {[%clk 0:01:24]} 23. Qd2 {[%clk 0:01:13.3]} 23... Nf5 {[%clk
0:01:17.2]} 24. Rc8 {[%clk 0:01:12.8]} 24... Rxc8 {[%clk 0:01:10.2]} 25. Rxc8+
{[%clk 0:01:12.6]} 25... Kh7 {[%clk 0:01:11.1]} 26. g3 {[%clk 0:01:10.7]} 26...
Qg6 {[%clk 0:01:06.6]} 27. Rc7 {[%clk 0:00:59.7]} 27... Nh4 {[%clk 0:00:50.1]}
28. Qf4 {[%clk 0:00:56.9]} 28... Qb1+ {[%clk 0:00:49]} 29. Rc1 {[%clk
0:00:56.5]} 29... Nf3+ {[%clk 0:00:41.4]} 30. Kg2 {[%clk 0:00:48.3]} 30... Qe4
{[%clk 0:00:27.2]} 31. Qxf3 {[%clk 0:00:44.4]} 1-0

[Event "Early-Titled-Tuesday-Blitz-October-10-2023"]
[Site "Chess.com"]
[Date "2023.10.10"]
[Round "11"]
[White "santosalberto1987"]
[Black "ajedrezhoy"]
[Result "1/2-1/2"]
[WhiteElo "2454"]
[BlackElo "2367"]
[TimeControl "180+1"]
[EndTime "10:03:55 PDT"]
[Termination "Game drawn by repetition"]

1. e4 {[%clk 0:03:00.9]} 1... Nf6 {[%clk 0:02:59.5]} 2. e5 {[%clk 0:03:01]} 2...
Nd5 {[%clk 0:02:58.7]} 3. d4 {[%clk 0:03:01.6]} 3... d6 {[%clk 0:02:58.6]} 4.
Bc4 {[%clk 0:03:00.6]} 4... Nb6 {[%clk 0:02:58]} 5. Bb3 {[%clk 0:03:00.8]} 5...
dxe5 {[%clk 0:02:57.3]} 6. Qf3 {[%clk 0:03:00.7]} 6... e6 {[%clk 0:02:57.1]} 7.
dxe5 {[%clk 0:03:00.8]} 7... Nc6 {[%clk 0:02:57.3]} 8. Qg3 {[%clk 0:03:01.2]}
8... Nd4 {[%clk 0:02:48.6]} 9. Nf3 {[%clk 0:03:00.6]} 9... Nxf3+ {[%clk
0:02:13.4]} 10. Qxf3 {[%clk 0:03:00.2]} 10... Be7 {[%clk 0:02:12.8]} 11. Qg3
{[%clk 0:02:59.3]} 11... g6 {[%clk 0:02:00.7]} 12. Bh6 {[%clk 0:02:58.5]} 12...
Bf8 {[%clk 0:01:58.7]} 13. Bxf8 {[%clk 0:02:57.4]} 13... Kxf8 {[%clk 0:01:58.3]}
14. O-O {[%clk 0:02:56.1]} 14... Nd7 {[%clk 0:01:57.2]} 15. Nc3 {[%clk
0:02:55.9]} 15... Kg7 {[%clk 0:01:52.7]} 16. Ne4 {[%clk 0:02:54.3]} 16... b6
{[%clk 0:01:45.2]} 17. Rad1 {[%clk 0:02:52.1]} 17... Qe7 {[%clk 0:01:42.6]} 18.
Qf4 {[%clk 0:02:33.5]} 18... Bb7 {[%clk 0:01:40.1]} 19. Rd4 {[%clk 0:01:41.6]}
19... Bxe4 {[%clk 0:01:37.8]} 20. Qxe4 {[%clk 0:01:41.6]} 20... Nc5 {[%clk
0:01:32.1]} 21. Qc6 {[%clk 0:01:37.6]} 21... Rad8 {[%clk 0:01:26.5]} 22. Rfd1
{[%clk 0:01:37.4]} 22... Rxd4 {[%clk 0:01:22.8]} 23. Rxd4 {[%clk 0:01:38.3]}
23... Rd8 {[%clk 0:01:22.1]} 24. c3 {[%clk 0:01:37.4]} 24... Rxd4 {[%clk
0:01:18.2]} 25. cxd4 {[%clk 0:01:37.5]} 25... Nxb3 {[%clk 0:01:14.5]} 26. axb3
{[%clk 0:01:38.4]} 26... Qb4 {[%clk 0:01:10.7]} 27. Qc3 {[%clk 0:01:37.9]} 27...
Qxc3 {[%clk 0:01:06.4]} 28. bxc3 {[%clk 0:01:37.8]} 28... a5 {[%clk 0:01:06.7]}
29. c4 {[%clk 0:01:38]} 29... c6 {[%clk 0:00:52.5]} 30. Kf1 {[%clk 0:01:38.1]}
30... b5 {[%clk 0:00:51.2]} 31. Ke2 {[%clk 0:01:38.3]} 31... g5 {[%clk
0:00:49.7]} 32. h3 {[%clk 0:01:36]} 32... h5 {[%clk 0:00:49.3]} 33. g4 {[%clk
0:01:34.2]} 33... hxg4 {[%clk 0:00:47.1]} 34. hxg4 {[%clk 0:01:35.1]} 34... f6
{[%clk 0:00:47]} 35. Kd3 {[%clk 0:01:07.4]} 35... Kf7 {[%clk 0:00:42.4]} 36. Kc3
{[%clk 0:01:07.3]} 36... Ke7 {[%clk 0:00:41.2]} 37. c5 {[%clk 0:00:57.6]} 37...
fxe5 {[%clk 0:00:36.4]} 38. dxe5 {[%clk 0:00:57.8]} 38... Kf7 {[%clk 0:00:33.2]}
39. Kd4 {[%clk 0:00:57.4]} 39... Kg7 {[%clk 0:00:31.8]} 40. Kc3 {[%clk
0:00:57.6]} 40... Kg6 {[%clk 0:00:31.5]} 41. Kd4 {[%clk 0:00:57.8]} 41... Kf7
{[%clk 0:00:31.5]} 42. Kc3 {[%clk 0:00:58.1]} 42... Kg6 {[%clk 0:00:31.6]} 43.
Kd4 {[%clk 0:00:58.4]} 43... Kf7 {[%clk 0:00:31.5]} 44. Kc3 {[%clk 0:00:58.8]}
44... Kg6 {[%clk 0:00:31.4]} 1/2-1/2